Cogmind - Beta 10.2 @@@ ROGUE MODE // 2021.01.02 @ 15:51:04 Player: Wyvric Result: Destroyed by G-34 Mercenary with Small Laser Performance ------------- Evolutions (0) 0 Regions Visited (2) 400 Robots Destroyed (18) 90 Value Destroyed (315) 315 Prototype IDs (0) 0 Alien Tech Used (0) 0 Bonus (0) 0 TOTAL SCORE: 805 Bonus ------- None Cogmind --------- Core Integrity 0/250 Matter 171/300 Energy 250/250 System Corruption 1% Temperature Cool (6) Movement Core (350) Ox6 Location -10/Mines Parts ------- > --- POWER (1) -------- Ion Engine > --- PROPULSION (2) --- (None) > --- UTILITY (2) ------ Large Storage Unit Visual Processing Unit > --- WEAPON (2) ------- (None) > --- INVENTORY (10) --- Terrain Scanner Peak State ------------ > --- POWER ------------ Ion Engine > --- PROPULSION ------- Aluminum Leg Aluminum Leg > --- UTILITY ---------- Large Storage Unit Visual Processing Unit > --- WEAPON ----------- Assault Rifle Assault Rifle > --- INVENTORY -------- Terrain Scanner [Rating: 8] Favorites ----------- Power Ion Engine Engine Ion Engine Propulsion Aluminum Leg Leg Aluminum Leg Utility Structural Scanner Device Structural Scanner Storage Large Storage Unit Processor Visual Processing Unit Weapon Assault Rifle Energy Gun EM Pulse Gun Energy Cannon Beam Cannon Ballistic Gun Assault Rifle Special Weapon Mining Laser Build | -11 -10 -10 ------- Run | Scr Mat Min Slots Evolved . | . . . Power . | . . . Propulsion . | . . . Utility . | . . . Weapon . | . . . Parts Attached 17 | 5 12 . Power 2 | 1 1 . Engine 2 | 1 1 . Core . | . . . Reactor . | . . . Propulsion 2 | 2 . . Treads . | . . . Leg 2 | 2 . . Wheel . | . . . Hover . | . . . Flight . | . . . Utility 5 | . 5 . Device 2 | . 2 . Storage 1 | . 1 . Processor 2 | . 2 . Hackware . | . . . Protection . | . . . Artifact . | . . . Weapon 8 | 2 6 . Energy Gun 1 | 1 . . Energy Cannon 2 | . 2 . Ballistic Gun 4 | 1 3 . Ballistic Cannon . | . . . Launcher . | . . . Special Weapon 1 | . 1 . Impact Weapon . | . . . Slashing Weapon . | . . . Piercing Weapon . | . . . Special Melee Weapon . | . . . Unidentified Prototypes . | . . . Parts Lost 7 | . 3 4 Power 1 | . 1 . Propulsion 2 | . . 2 Utility . | . . . Weapon 4 | . 2 2 Highest Loss Streak 4 | . 1 4 Average Slot Usage (%) 92 | . 93 88 Engine 13 | . 13 14 Leg 26 | . 28 21 Device 15 | . 19 . Storage 5 | . 3 14 Processor 3 | . . 14 Energy Gun 1 | . 1 . Energy Cannon 3 | . 4 . Ballistic Gun 20 | . 19 23 Special Weapon 1 | . 1 . Naked Turns . | . . . Heaviest Build 26 | 7 26 25 Greatest Support 20 | 20 20 20 Greatest Overweight (x) 7 | . 1 7 Average Overweight (x) . | . . 1 Largest Inventory Capacity 10 | 4 10 10 Average Capacity 6 | 4 5 10 Most Carried 3 | 2 3 1 Average Carried . | . . 1 Final Capacity 10 | 4 10 10 Final Carried 1 | . 1 1 Class Distribution -------------------- 100% | Mutant Dominant Class ---------------- Mutant | -10/Materials Mutant | -10/Mines Resources | -11 -10 -10 ----------- Run | Scr Mat Min Matter Collected 531 | 265 266 . Remotely . | . . . Salvage Created 524 | 39 417 68 Parts 39 | 1 33 5 Haulers Intercepted . | . . . Recyclers Shooed 3 | . 3 . Parts Field Recycled . | . . . Retrieved Matter . | . . . Parts Self-Destructed . | . . . Prevented . | . . . Kills | -11 -10 -10 ------- Run | Scr Mat Min Combat Hostiles Destroyed 12 | 1 10 1 Guns 10 | 1 8 1 Cannons 2 | . 2 . Classes Destroyed 6 | 1 5 . Worker 2 | . 2 . Tunneler 2 | . 1 1 Recycler 1 | . 1 . Watcher 1 | . 1 . Swarmer 6 | . 6 . Grunt 6 | 1 4 1 Best Kill Streak 4 | 1 4 1 Combat Bots Only 3 | 1 3 1 Max Kills in Single Turn 2 | 1 2 1 Gunslinging 1 | . 1 . Exploded . | . . . Melee . | . . . Uniques/NPCs Destroyed . | . . . Combat | -11 -10 -10 -------- Run | Scr Mat Min Damage Taken 952 | 35 523 394 Core 251 | . 107 144 Absorbed by Shields . | . . . Core Remaining (%) 100 | 100 . . Volleys Fired 88 | 5 65 18 Largest 2 | 2 2 2 Hottest 120 | 60 120 40 Shots Fired 148 | 10 114 24 Gun 125 | 10 91 24 Cannon 22 | . 22 . Launcher . | . . . Special 1 | . 1 . Kinetic 113 | 5 84 24 Thermal 23 | . 23 . Explosive . | . . . Electromagnetic 12 | 5 7 . Robot Hit Streak 10 | 4 10 9 Robot Miss Streak 8 | 3 8 2 Penetration Max . | . . . Secondary Targets 1 | . 1 . Max Gunslinging Chain 1 | . 1 . Shots Hit Robots 80 | 6 56 18 Core Hits 28 | 2 21 5 Critical Hits . | . . . Critical Kills . | . . . Critical Parts Destroyed . | . . . Melee Attacks . | . . . Impact . | . . . Slashing . | . . . Piercing . | . . . Sneak Attacks . | . . . Combat Hostiles . | . . . Follow-up Attacks . | . . . Damage Inflicted 1068 | 66 767 235 Guns 843 | 66 542 235 Cannons 225 | . 225 . Explosions . | . . . Melee . | . . . Ramming . | . . . Kinetic 780 | 23 522 235 Thermal 225 | . 225 . Explosive . | . . . Electromagnetic 63 | 43 20 . Impact . | . . . Slashing . | . . . Piercing . | . . . Highest Corruption 1 | . 1 1 Average Corruption 1 | . 1 1 Corruption Purged . | . . . Effects 3 | . 3 . Message Errors 1 | . 1 . Data Loss (minor) 1 | . 1 . Targeting Errors 1 | . 1 . Overload Shots . | . . . Overflow Damage 17 | . 17 . Projectiles 17 | . 17 . Explosions . | . . . Melee . | . . . Knockbacks . | . . . Impact . | . . . Kinetic . | . . . Secondary . | . . . Self-Inflicted Damage . | . . . Shots . | . . . Rammed 1 | . 1 . Targets Rammed 1 | . 1 . Kicked . | . . . Crushed . | . . . Highest Temperature 252 | 6 252 9 Average Temperature 64 | 6 80 3 Received Heat Transfer 411 | 18 168 225 Siege Activations . | . . . Robots Corrupted . | . . . Combat Hostiles . | . . . Parts Fried . | . . . Impact Corruptions . | . . . Robots Melted . | . . . Combat Hostiles . | . . . Parts Melted . | . . . Heat Transferred 481 | . 481 . Parts Sabotaged . | . . . Parts Stolen . | . . . Parts Stripped . | . . . Power Chain Reactions . | . . . Missiles Intercepted . | . . . Alert | -11 -10 -10 ------- Run | Scr Mat Min Peak Influence 290 | 20 290 71 Initial 56 | . 13 56 Average 113 | 2 145 55 Maximum Alert Level 1 | . 1 . Low Security (%) 84 | 100 78 100 Level 1 15 | . 21 . Level 2 . | . . . Level 3 . | . . . Level 4 . | . . . Level 5 . | . . . High Security . | . . . Max Security . | . . . Squads Dispatched 1 | . 1 . Investigation 1 | . 1 . Extermination . | . . . Reinforcement . | . . . Assault . | . . . Garrison . | . . . Intercept . | . . . Construction Impeded . | . . . Haulers Reinforced . | . . . Stealth | -11 -10 -10 --------- Run | Scr Mat Min Distress Signals 4 | . 4 . Communications Jammed . | . . . Distress Signals . | . . . Times Spotted 22 | 1 19 2 Peak Tracking Total 5 | 1 5 2 Tactical Retreats 2 | . 2 . Traps | -11 -10 -10 ------- Run | Scr Mat Min Traps Triggered . | . . . Indirectly . | . . . Trap Hack Attempts . | . . . Triggered . | . . . Disarmed 4 | . 4 . Reprogrammed . | . . . Reused . | . . . Traps Extracted . | . . . Installed . | . . . Triggered . | . . . Machines | -11 -10 -10 ---------- Run | Scr Mat Min Machines Disabled . | . . . Max in Single Turn . | . . . Machines Sabotaged . | . . . Garrisons Compromised . | . . . Overloaded Fab Kills . | . . . Fab Network Shutdowns . | . . . Hacking | -11 -10 -10 --------- Run | Scr Mat Min Machines Accessed 3 | . 3 . Terminals 1 | . 1 . Fabricators . | . . . Repair Stations . | . . . Recycling Units 2 | . 2 . Scanalyzers . | . . . Garrison Access . | . . . Total Hacks 9 | . 9 . Successful 5 | . 5 . Failed 4 | . 4 . Catastrophic 1 | . 1 . Database Lockouts . | . . . Manual 8 | . 8 . Terminals 3 | . 3 . Fabricators . | . . . Repair Stations . | . . . Recycling Units 6 | . 6 . Scanalyzers . | . . . Garrison Access . | . . . Terminal Hacks 1 | . 1 . Disarm Traps 1 | . 1 . Fabricator Hacks . | . . . Repair Station Hacks . | . . . Recycling Unit Hacks 2 | . 2 . Process 1 | . 1 . Report Inventory 1 | . 1 . Scanalyzer . | . . . Garrison Access Hacks . | . . . Unauthorized Hacks 2 | . 2 . Terminals . | . . . Fabricators . | . . . Repair Stations . | . . . Recycling Units 2 | . 2 . Monitor 2 | . 2 . Scanalyzers . | . . . Garrison Access . | . . . Data Cores Recovered . | . . . Used . | . . . Hacking Detections 3 | . 3 . Full Trace Events 3 | . 3 . Feedback Events 1 | . 1 . Corruption 1 | . 1 . Feedback Blocked . | . . . Robot Schematics Acquired . | . . . Robots Built . | . . . Matter . | . . . Time . | . . . Total Robot Build Rating . | . . . Part Schematics Acquired . | . . . Parts Built . | . . . Matter . | . . . Time . | . . . Total Part Build Rating . | . . . Parts Repaired . | . . . Time . | . . . Parts Recycled . | . . . Recycled Matter . | . . . Retrieved Matter . | . . . Retrieved Components . | . . . Parts Scanalyzed . | . . . Part Schematics Acquired . | . . . Parts Damaged . | . . . Bothacking | -11 -10 -10 ------------ Run | Scr Mat Min Used RIF Installer . | . . . Robots Hacked . | . . . Non-combat . | . . . Combat . | . . . Robot Hacks Applied . | . . . Relay Couplers Released . | . . . Robots Rewired . | . . . Allies Hacked . | . . . Hacks Repelled . | . . . Allies | -11 -10 -10 -------- Run | Scr Mat Min Total Allies . | . . . Largest Group . | . . . Highest-Rated Group . | . . . Highest-Rated Ally . | . . . Total Orders . | . . . Ally Attacks . | . . . Total Damage . | . . . Kills . | . . . Allies Corrupted . | . . . Allies Melted . | . . . Intel | -11 -10 -10 ------- Run | Scr Mat Min Robot Analysis Total . | . . . Derelict Logs Recovered . | . . . Drone Launches . | . . . Drone Recoveries . | . . . Exploration | -11 -10 -10 ------------- Run | Scr Mat Min Turns Passed 961 | 103 676 182 Spaces Moved 532 | 87 359 86 Core 40 | 36 . 4 Treads . | . . . Legs 492 | 51 359 82 Wheels . | . . . Hover . | . . . Flight . | . . . Fastest Speed 50 | 50 120 150 Average Speed 125 | 91 125 162 Slowest Speed 400 | 120 150 400 Overloaded Moves . | . . . Propulsion Burnouts . | . . . Robots Hopped . | . . . Cave-ins Triggered . | . . . Exploration Rate (%) 29 | 5 65 17 Regions Visited 2 Branch Regions 1 Pre-discovered Areas . | . . . Known Exits Taken . | . . . Unknown Exits Taken 2 | 1 1 . Scrap Searched . | . . . Spaces Dug . | . . . Terrain Destroyed . | . . . Melee . | . . . Projectile . | . . . AOE . | . . . Terrain Rammed . | . . . Walls Destroyed . | . . . Machines Disabled . | . . . Actions | -11 -10 -10 --------- Run | Scr Mat Min Total 677 | 101 471 105 Wait 17 | . 16 1 Move 530 | 86 358 86 Hop . | . . . Pick Up 18 | 5 13 . Fast Attach . | . . . Attach 13 | 5 8 . Detach . | . . . Swap 4 | . 4 . Drop 6 | . 6 . Fire 88 | 5 65 18 Melee . | . . . Ram . | . . . Kick 1 | . 1 . Crush . | . . . Escape Stasis . | . . . Rewire . | . . . Trap . | . . . Miscellaneous . | . . . Route ------- -11/Scrapyard -10/Materials (discovered 3 exits: [*Mat] / [*Min x2]) -10/Mines History --------- Turn | Location | Event 2 | -11/Scrapyard | Met Revision 17 71 | -11/Scrapyard | Discovered new exit (range 8) 104 | -11/Scrapyard | Entered Materials 313 | -10/Materials | Discovered new exit (range 16) 329 | -10/Materials | Build established: Mutant 572 | -10/Materials | Discovered new exit (range 7) 765 | -10/Materials | Discovered new exit (range 8) 780 | -10/Materials | Entered Mines 901 | -10/Mines | Core integrity fell below 50% 934 | -10/Mines | Core integrity fell below 20% 962 | -10/Mines | Destroyed by G-34 Mercenary with Small Laser Last Messages --------------- 00775_ >> MONITOR: Recycling Unit M001 accepting Imp. Terrain Scanner(86%). LOCATION=UNKNOWN GOAL=ESCAPE Something is scanning the area. 00781_ K-01 Serf collects debris. 00828_ K-01 Serf cleans the Core Extractor. 00832_ K-01 Serf collects debris. 00839_ K-01 Serf cleans the Core Extractor. 00847_ K-01 Serf collects debris. 00901_ T-07 Excavator destroyed. 00910_ Aluminum Leg destroyed. 00911_ Assault Rifle destroyed. 00915_ K-01 Serf collects debris. 00927_ G-47 Trooper destroyed. 00931_ Aluminum Leg destroyed. 00932_ K-01 Serf collects debris. 00933_ R-06 Scavenger collects Aluminum Leg. 00937_ R-06 Scavenger collects Lgt. Nuclear Core. 00956_ Assault Rifle destroyed. Map ----- +----------------------------------------------------+ | ????????????????????????????????????? | | ????????????????????????????????????? | | ????????????????????????????????????? | | ????????????????????????????????????? | | ????????????????????????????????????? | | ????????????????????????????????????? | | ????????????????????????????????????? | | ????????????????????????????????????? | | ????????????????????????????????????? | | ????????????????????????????????????? | | ????????????????????????????????????? | | ????????????????????????????????????? | | ????????????????????????????????????? | | ????????????????????????????????????? | | ????????????????????????????????????? | | ???????????????###??????????????????? | | ???????????????? ??????????????????? | | ???????????????? ?????????????????? | | ????????????????# ?????####????????? | | ????????????????# ????## ##???????? | | ????????????????# ????# ##??????? | | ????????????????# ????# ##?????? | | ???????????????## ##???# ##????? | | ???????????????# *%##???# #????? | | ???????????????# r##### #????? | | ????????????????# %g @ #?????? | | ????????????????## ## ## ##?????? | | ?????????????????# ## #####??????? | | ?????????????????## ## #??????????? | | ??????????????????## ### ###????????? | | ???????????????????###?# #????????? | | ???????????????????????### #????????? | | ?????????????????????????# #????????? | | ?????????????????????????# #????????? | | ?????????????????????????# #????????? | | ????????????####?######### #########? | | ????????????# #? | | ????????????# """ """ """ """ """ #? | | ????????????# """ """ """ """ """ #? | | ????????????# """ """ """ """ """ #? | | ????????????# #? | | ????????????# """ """ """ """ """ #? | | ????????????# """ """ """ """ """ #? | | ????????????# """ """ """ """ """ #? | | ????????????# #? | | ????????????# """ """ """ """ #? | | ????????????# """ """ """ """ #? | | ????????????# """ """ """ """ #? | | ????????????# #? | | ????????????# #? | +----------------------------------------------------+ Best States ------------- Heat Dissipation 25 Energy Generation 10 Energy Capacity 250 Matter Stores 300 Matter Capacity 300 Sight Range 18 Terrain Scan Range 14 Terrain Scan Density 10 Evasion (%) 50 Item Schematics ----------------- None Robot Schematics ------------------ None Fabricated ------------ Nothing Alien Tech Used ----------------- None Achievements -------------- True Hacker Challenges ------------ None Game ------ Seed FusionSuspensionDevice Manual? 0 Play Time 00:31:52 Cumulative 4.3 hours Start 2020.12.19 @ 23:02:29 End 2021.01.02 @ 15:51:04 Sessions 6 Manual Loads 0 Difficulty Rogue Special Mode None Game No. 2 Rogue 2 Adventurer 0 Explorer 0 Win Type - Total 0 Types 0/0/0/0/0/0/0/0/0 Lore% 4 Gallery% 10 Achievement% 9 Wizard Run 0 Options --------- ASCII 0 Keyboard 0 Movement Mouse Keybinds 0 Fullscreen 1 Font 18/TerminusBold Map View 76x50 Tactical HUD 1 Map Filters NONE Filters NONE Steam X RUN: 8f0d2754-cd6d-4db4-8e61-9a67ee1f5746